bitfinex-derivatives/quotes_SOLF0:USTF0_20250603
["timestamp","ask_amount","ask_price","bid_price","bid_amount"]
[1748923880934,6.2851,159.02,159.0,0.04372369]
[1748923883430,6.32426243,159.03,159.0,0.04372369]
[1748923883826,0.03956243,159.03,159.0,32.16372369]
[1748923884538,0.03956243,159.03,159.0,38.44932369]
[1748923885435,0.03956243,159.03,159.01,6.2853]
[1748923887336,0.03956243,159.03,159.0,38.44932369]
[1748923889338,0.03956243,159.03,159.01,6.2853]
[1748923890139,0.03956243,159.03,159.0,38.44932369]
[1748923890343,0.03956243,159.03,159.0,32.16372369]
[1748923890732,0.03956243,159.03,159.02,6.285]
[1748923891533,0.03956243,159.03,159.0,32.16372369]
[1748923891938,0.03956243,159.03,159.01,6.2852]
[1748923893644,0.03956243,159.03,159.02,6.285]
[1748923896633,0.03956243,159.03,159.01,6.2852]
[1748923896838,0.03956243,159.03,159.0,34.31652369]
[1748923896839,0.03956243,159.03,159.0,40.82508051]
[1748923897043,0.03956243,159.03,159.0,38.67228051]
[1748923898043,6.32436243,159.03,159.0,38.67228051]
[1748923898842,6.32436243,159.03,159.0,32.16372369]
[1748923900547,0.03956243,159.03,159.0,32.16372369]
[1748923900849,0.03956243,159.03,159.01,6.50855682]
[1748923901049,0.03956243,159.03,159.01,12.79365682]
[1748923906352,0.03956243,159.03,159.02,6.285]
[1748923907944,0.03956243,159.03,159.01,6.50855682]
[1748923907945,2.1354,159.1,159.01,12.35349179]
[1748923908147,38.28855682,159.13,159.04,6.50855682]
[1748923908459,38.28855682,159.13,159.02,5.84493497]
[1748923908460,10.76815682,159.14,159.08,6.2824]
[1748923908756,6.2814,159.12,159.08,6.2824]
[1748923908953,6.32836269,159.12,159.08,6.32299212]
[1748923909149,0.04696269,159.12,159.08,6.32299212]
[1748923910261,6.2816,159.11,159.08,6.32299212]
[1748923911754,6.2816,159.11,159.08,0.04059212]
[1748923912356,6.2818,159.1,159.08,0.04059212]
[1748923912556,6.55551951,159.12,159.08,0.04059212]
[1748923913754,6.2822,159.09,159.08,0.04059212]
[1748923916856,6.2822,159.09,159.04,31.78]
[1748923916857,6.2838,159.05,159.04,31.78]
[1748923919959,0.04626213,159.06,159.04,31.78]
[1748923920652,6.2838,159.05,159.04,31.78]
[1748923922859,0.04626213,159.06,159.03,0.04147116]
[1748923922860,6.2842,159.04,159.03,0.04147116]
[1748923924464,6.2839,159.05,159.03,0.04147116]
[1748923925356,6.2842,159.04,159.03,0.04147116]
[1748923927959,6.2839,159.05,159.03,0.04147116]
[1748923929960,0.04626213,159.06,159.03,0.04147116]
[1748923929961,6.2842,159.04,159.03,0.04147116]
[1748923934365,6.2839,159.05,159.03,0.04147116]
[1748923936069,0.04626213,159.06,159.03,6.55002798]
[1748923936271,0.04626213,159.06,159.04,5.863853]
[1748923936569,0.04626213,159.06,159.04,6.2838]
[1748923936966,0.04626213,159.06,159.03,12.41388098]
[1748923937168,0.04626213,159.06,159.05,6.2838]
[1748923938672,0.04626213,159.06,159.05,37.9038]
[1748923938876,0.04626213,159.06,159.05,50.27620982]
[1748923939084,0.04626213,159.06,159.05,50.27112636]
[1748923942783,0.04626213,159.06,159.05,44.41235682]
[1748923943081,0.04626213,159.06,159.05,50.26612242]
[1748923943279,0.04626213,159.06,159.05,43.75730808]
[1748923946685,0.04626213,159.06,159.05,43.75708959]
[1748923947592,33.6292,159.13,159.08,6.2823]
[1748923947991,2.0092,159.13,159.08,6.2823]
[1748923948190,6.2813,159.12,159.08,6.2823]
[1748923948379,6.2813,159.12,159.09,6.2821]
[1748923948583,6.32878749,159.12,159.09,6.32979955]
[1748923949389,6.2815,159.11,159.09,0.04769955]
[1748923952083,6.2818,159.1,159.09,0.04769955]
[1748923952293,6.50855682,159.11,159.05,31.62]
[1748923952490,6.284,159.05,159.03,5.85081461]
[1748923952792,6.50855682,159.07,159.02,31.6]
[1748923953185,6.2844,159.04,159.02,31.6]
[1748923953385,6.2844,159.04,159.03,0.04822696]
[1748923956290,0.04577846,159.06,159.03,0.04822696]
[1748923956291,6.2839,159.05,159.03,0.04822696]
[1748923960193,0.04577846,159.06,159.03,0.04822696]
[1748923961199,0.04577846,159.06,159.03,6.33252696]
[1748923961797,0.04577846,159.06,159.04,6.2841]
[1748923961998,0.04577846,159.06,159.04,6.50855682]
[1748923962293,0.04577846,159.06,159.05,6.2838]
[1748923963000,6.2815,159.11,159.07,6.2829]
[1748923963697,6.2815,159.11,159.08,6.2825]
[1748923963997,6.32917247,159.11,159.08,6.32719638]
[1748923965197,6.32917247,159.11,159.08,0.04469638]
[1748923966797,0.04767247,159.11,159.08,0.04469638]
[1748923968002,0.04767247,159.11,159.08,6.32699638]
[1748923970501,6.32917247,159.11,159.08,6.32699638]
[1748923970701,6.32917247,159.11,159.08,0.04469638]
[1748923971202,6.32917247,159.11,159.08,6.32719638]
[1748923971402,0.04767247,159.11,159.08,6.32719638]
[1748923971598,0.04767247,159.11,159.08,0.04469638]
[1748923971903,6.32907247,159.11,159.08,0.04469638]
[1748923972399,0.04767247,159.11,159.09,6.282]
[1748923972901,0.04767247,159.11,159.1,12.79035682]
[1748923973201,0.04767247,159.11,159.1,44.39035682]
[1748923975311,0.04767247,159.11,159.1,31.6]
[1748923975602,6.32907247,159.11,159.1,31.6]
[1748923976001,0.04767247,159.11,159.08,0.04469638]
[1748923976197,6.2822,159.09,159.08,0.04469638]
[1748923978306,6.2838,159.05,159.04,31.58]
[1748923978503,6.50855682,159.07,159.01,31.58]
[1748923978697,6.50855682,159.07,159.01,37.42477156]
[1748923979103,6.50855682,159.07,159.01,31.58]
[1748923979408,0.04823072,159.06,159.02,0.04533269]
[1748923981005,6.2846,159.03,159.02,0.04533269]
[1748923982104,6.2843,159.04,159.02,0.04533269]
[1748923982506,0.04823072,159.06,159.02,0.04533269]
[1748923983703,6.33183072,159.06,159.02,6.33003269]
[1748923984412,6.284,159.05,159.02,6.33003269]
[1748923985205,6.284,159.05,159.02,0.04533269]
[1748923989912,6.284,159.05,159.02,6.33033269]
[1748923990310,6.33183072,159.06,159.02,6.33033269]
[1748923990507,0.04823072,159.06,159.02,6.55388951]
[1748923990912,6.33193072,159.06,159.02,18.68711748]
[1748923991311,6.33193072,159.06,159.02,12.40221748]
[1748923992017,0.04823072,159.06,159.03,6.2845]
[1748923992320,0.04823072,159.06,159.02,0.04533269]
[1748923992521,6.2842,159.05,159.02,0.04533269]
[1748923993821,6.2843,159.04,159.02,0.04533269]
[1748923995218,6.2846,159.03,159.02,0.04533269]
[1748923996421,6.2844,159.04,159.02,0.04533269]
[1748923997818,6.2846,159.03,159.02,0.04533269]
[1748923998919,6.2844,159.04,159.02,0.04533269]
[1748924002121,0.04823072,159.06,159.03,6.50855682]
[1748924002315,0.04823072,159.06,159.03,12.35372436]
[1748924002520,0.04823072,159.06,159.04,6.284]
[1748924003024,0.04823072,159.06,159.05,12.79235682]
[1748924003222,6.3879,159.13,159.05,38.10855682]
[1748924003223,12.89645682,159.13,159.05,38.10855682]
[1748924003615,12.89645682,159.13,159.05,43.94726935]
[1748924003822,6.2814,159.12,159.07,6.2828]
[1748924004219,6.2814,159.12,159.05,43.94726935]
[1748924004220,0.04352326,159.11,159.08,0.04629551]
[1748924005128,6.32512326,159.11,159.08,0.04629551]
[1748924005628,0.04352326,159.11,159.08,0.04629551]
[1748924005822,6.2819,159.1,159.08,0.04629551]
[1748924012935,6.2823,159.09,159.08,0.04629551]
[1748924014334,6.282,159.1,159.08,0.04629551]
[1748924015130,0.04352326,159.11,159.08,0.04629551]
[1748924015929,6.2819,159.1,159.08,0.04629551]
[1748924017238,6.2823,159.09,159.08,0.04629551]
[1748924019032,6.282,159.1,159.08,0.04629551]
[1748924019435,0.04352326,159.11,159.08,6.32889551]
[1748924019634,6.32522326,159.11,159.08,0.04629551]
[1748924020039,0.04352326,159.11,159.08,0.04629551]
[1748924020434,6.2819,159.1,159.08,0.04629551]
[1748924020937,6.32522326,159.11,159.08,0.04629551]
[1748924021242,0.04352326,159.11,159.08,6.32889551]
[1748924022538,6.32512326,159.11,159.08,6.32889551]
[1748924022745,0.04352326,159.11,159.09,6.2822]
[1748924022937,0.04352326,159.11,159.08,0.04629551]
[1748924023141,0.04352326,159.11,159.1,6.2819]
[1748924024744,0.04352326,159.11,159.09,44.35075682]
[1748924024941,0.04352326,159.11,159.09,38.06855682]
[1748924025332,0.04352326,159.11,159.09,31.56]
[1748924026845,6.32512326,159.11,159.09,31.56]
[1748924027046,0.04352326,159.11,159.09,31.56]
[1748924027242,6.2823,159.09,159.08,0.04629551]
[1748924029437,6.2843,159.04,159.01,5.8314966]
[1748924029636,6.2843,159.04,159.0,586.74005342]
[1748924029844,6.2843,159.04,159.01,6.2852]
[1748924030043,6.284,159.05,159.0,586.74005342]
[1748924030439,0.04224869,159.04,159.01,6.33222136]
[1748924031050,6.32664869,159.04,159.01,6.33222136]
[1748924034251,0.04224869,159.04,159.02,6.2847]
[1748924034549,31.56,159.12,159.02,12.33743631]
[1748924034846,31.56,159.12,159.05,6.50855682]
[1748924035052,6.2825,159.09,159.05,44.35215682]
[1748924035452,6.2825,159.09,159.06,6.2834]
[1748924035656,0.04653429,159.09,159.07,6.50855682]
[1748924037058,0.04653429,159.09,159.08,6.2827]
[1748924037556,0.04653429,159.09,159.07,6.50855682]
[1748924038755,0.04653429,159.09,159.06,0.04270198]
[1748924039558,6.32923429,159.09,159.06,0.04270198]
[1748924040166,6.2827,159.08,159.06,0.04270198]
[1748924040664,0.04653429,159.09,159.06,0.04270198]
[1748924040665,6.32913429,159.09,159.06,0.04270198]
[1748924045866,6.32913429,159.09,159.06,6.32610198]
[1748924046065,0.04653429,159.09,159.06,0.04270198]
[1748924046267,0.04653429,159.09,159.06,5.88005747]
[1748924047068,0.04653429,159.09,159.07,6.2828]
[1748924047267,0.04653429,159.09,159.06,5.88005747]
[1748924047971,0.04653429,159.09,159.06,0.04270198]
[1748924048169,6.2829,159.08,159.06,0.04270198]
[1748924048962,6.2831,159.07,159.06,0.04270198]
[1748924049169,6.50855682,159.08,159.02,5.83735549]
[1748924049478,8.64405682,159.06,159.01,5.83735549]
[1748924049771,6.285,159.03,159.01,5.84336228]
[1748924049971,6.285,159.03,159.0,5.84336228]
[1748924050164,6.32785117,159.03,159.0,12.17513689]
[1748924053275,6.32785117,159.03,159.0,6.33177461]
[1748924053577,0.04285117,159.03,159.0,12.16941974]
[1748924054165,0.04285117,159.03,159.0,12.39227656]
[1748924054364,0.04285117,159.03,159.02,6.50855682]
[1748924054771,6.2831,159.07,159.02,6.50855682]
[1748924055079,6.2831,159.07,159.03,31.56]
[1748924055273,6.2831,159.07,159.03,43.68194513]
[1748924055871,6.32696363,159.07,159.03,43.72752959]
[1748924056066,6.2835,159.06,159.03,43.72752959]
[1748924056273,0.04386363,159.07,159.03,37.88988446]
[1748924056471,6.2835,159.06,159.03,31.60558446]
[1748924056670,0.04386363,159.07,159.03,31.60558446]
[1748924057078,6.2837,159.06,159.03,31.60558446]
[1748924057577,6.2837,159.06,159.03,37.89018446]
[1748924058880,6.2835,159.06,159.03,31.60558446]
[1748924059979,6.2835,159.06,159.03,37.88998446]
[1748924060585,6.2835,159.06,159.03,43.72284919]
[1748924062987,6.2835,159.06,159.03,37.88998446]
[1748924064088,0.04386363,159.07,159.03,37.88998446]
[1748924064089,6.32706363,159.07,159.03,37.88998446]
[1748924065289,0.04386363,159.07,159.03,31.60558446]
[1748924065587,6.50855682,159.04,159.03,8.446e-05]
[1748924065787,6.50855682,159.04,159.02,5.83576032]
[1748924066190,6.2846,159.03,159.02,5.83576032]
[1748924067193,6.285,159.02,159.01,0.04651122]
[1748924078208,6.33032198,159.03,159.01,0.04651122]
[1748924078411,0.04542198,159.03,159.01,0.04651122]
[1748924079314,0.04542198,159.03,159.02,6.285]
[1748924079715,0.04542198,159.03,159.01,0.04651122]
[1748924079906,0.04542198,159.03,159.01,6.33171122]
[1748924080911,0.04542198,159.03,159.02,12.79355682]
[1748924081109,31.56,159.09,159.02,6.50855682]
[1748924081517,6.2837,159.06,159.02,6.50855682]
[1748924082120,6.284,159.05,159.02,6.50855682]
[1748924083014,6.33082559,159.06,159.02,12.79335682]
[1748924085313,6.33082559,159.06,159.03,6.2846]
[1748924086415,6.33082559,159.06,159.02,12.79345682]
[1748924087917,6.33082559,159.06,159.03,6.2846]
[1748924088309,6.2839,159.05,159.02,6.50855682]
[1748924088712,0.04722559,159.06,159.02,12.79325682]
[1748924088914,0.04722559,159.06,159.01,5.87782537]
[1748924089120,0.04722559,159.06,159.01,0.04651122]
[1748924089812,0.04722559,159.06,159.01,6.55506804]
[1748924090013,6.2839,159.05,159.01,6.55506804]
[1748924090213,0.04722559,159.06,159.01,6.55506804]
[1748924091718,0.04722559,159.06,159.01,0.04651122]
[1748924093010,6.285,159.03,159.01,0.04651122]
[1748924093220,0.04722559,159.06,159.01,0.04651122]
[1748924093616,6.285,159.02,159.01,0.04651122]
[1748924100224,6.2848,159.03,159.01,0.04651122]
[1748924100633,0.04722559,159.06,159.01,0.04651122]
[1748924100828,6.285,159.02,159.01,0.04651122]
[1748924101927,6.2848,159.03,159.01,0.04651122]
[1748924103128,6.285,159.02,159.01,0.04651122]
[1748924104229,6.2848,159.03,159.01,0.04651122]
[1748924104622,0.04722559,159.06,159.01,0.04651122]
[1748924104831,6.285,159.02,159.01,0.04651122]
[1748924107327,6.2866,158.98,158.97,5.84836687]
[1748924107528,6.50855682,159.0,158.94,37.38836687]
[1748924107933,6.50855682,159.0,158.94,31.54]
[1748924108434,0.04201339,158.99,158.95,0.04677801]
[1748924109333,0.04201339,158.99,158.96,6.50855682]
[1748924110040,0.04201339,158.99,158.98,6.2866]
[1748924110241,0.04201339,158.99,158.98,44.33515682]
[1748924110534,6.50855682,159.0,158.97,5.84886519]
[1748924110738,6.50855682,158.98,158.97,5.84886519]
[1748924110924,6.50855682,158.98,158.92,14.30836519]
[1748924110925,6.2878,158.96,158.92,14.30836519]
[1748924111332,6.2878,158.96,158.92,8.4595]
[1748924111536,6.3334578,158.96,158.92,8.50119119]
[1748924111738,6.2879,158.95,158.92,0.04169119]
[1748924111925,0.0456578,158.96,158.92,0.04169119]
[1748924112734,6.2885,158.94,158.92,0.04169119]
[1748924113339,6.2886,158.93,158.92,0.04169119]
[1748924114832,6.2884,158.94,158.92,0.04169119]
[1748924116437,6.2886,158.93,158.92,0.04169119]
[1748924122036,6.2884,158.94,158.92,0.04169119]
[1748924122944,6.2886,158.93,158.92,0.04169119]
[1748924127139,6.50855682,158.94,158.88,31.54]
[1748924127140,6.2899,158.9,158.88,31.54]
[1748924127336,6.50855682,158.94,158.88,37.8306]
[1748924127537,6.2896,158.91,158.88,37.8306]
[1748924128146,6.33298921,158.91,158.88,37.87132561]
[1748924129644,0.04338921,158.91,158.88,38.08928243]
[1748924130547,0.04338921,158.91,158.89,6.2902]
[1748924131753,0.04338921,158.91,158.88,37.87112561]
[1748924132147,6.33298921,158.91,158.88,37.87112561]
[1748924132951,6.33298921,158.91,158.88,31.58072561]
[1748924132952,6.2898,158.9,158.88,31.58072561]
[1748924133145,0.04338921,158.91,158.88,31.58072561]
[1748924133347,6.33308921,158.91,158.88,31.58072561]
[1748924133544,0.04338921,158.91,158.88,31.58072561]
[1748924134049,0.04338921,158.91,158.88,0.04072561]
[1748924134349,6.50855682,158.9,158.88,0.04072561]
[1748924134655,6.2902,158.89,158.88,0.00607011]
[1748924145663,6.29,158.9,158.88,0.00607011]
[1748924145858,0.04338921,158.91,158.88,0.00607011]
[1748924146357,6.33318921,158.91,158.88,0.00607011]
[1748924146752,0.04338921,158.91,158.88,0.00607011]
[1748924147363,0.04338921,158.91,158.89,6.2899]
[1748924148652,0.04338921,158.91,158.9,6.2898]
[1748924151963,0.04338921,158.91,158.89,44.31855682]
[1748924153459,0.04338921,158.91,158.89,50.1584166]
[1748924153762,0.04338921,158.91,158.89,44.31855682]
[1748924153967,0.04338921,158.91,158.89,38.02855682]
[1748924154155,0.04338921,158.91,158.89,31.52]
[1748924154656,0.04338921,158.91,158.89,37.35985978]
[1748924154862,0.04338921,158.91,158.89,31.52]
[1748924155060,0.04338921,158.91,158.88,0.00607011]
[1748924155661,6.2902,158.89,158.88,0.00607011]
[1748924157459,12.79875682,158.89,158.88,0.00607011]
[1748924157764,12.79875682,158.89,158.84,5.85089453]
[1748924157765,6.2916,158.86,158.84,5.85089453]
[1748924157959,6.2916,158.86,158.83,43.66319453]
[1748924158352,6.2918,158.85,158.83,31.52]
[1748924158564,6.50855682,158.89,158.83,31.52]
[1748924158760,0.04505359,158.88,158.84,0.04258418]
[1748924159856,6.2918,158.85,158.84,0.04258418]
[1748924160657,6.2915,158.86,158.84,0.04258418]
[1748924161262,6.2918,158.85,158.84,0.04258418]
[1748924161565,0.04505359,158.88,158.84,0.04258418]
[1748924161966,6.2917,158.86,158.84,0.04258418]
[1748924162666,6.2918,158.85,158.84,0.04258418]
[1748924163068,6.2915,158.86,158.84,0.04258418]
[1748924163964,6.2918,158.85,158.84,0.04258418]
[1748924166263,6.2915,158.86,158.84,0.04258418]
[1748924166769,6.2911,158.87,158.84,6.33468418]
[1748924166967,0.04505359,158.88,158.84,0.04258418]
[1748924167165,0.04505359,158.88,158.84,6.33468418]
[1748924167372,6.291,158.87,158.84,6.33468418]
[1748924168269,0.04505359,158.88,158.84,6.33468418]
[1748924168270,6.33575359,158.88,158.84,6.33468418]
[1748924168658,6.291,158.87,158.84,6.33468418]
[1748924168860,6.291,158.87,158.84,0.04258418]
[1748924168861,38.04855682,158.87,158.84,0.04258418]
[1748924169065,6.50855682,158.85,158.8,5.85598959]
[1748924169271,6.50855682,158.85,158.79,5.85598959]
[1748924169464,6.2934,158.81,158.79,5.85598959]
[1748924169660,6.2934,158.81,158.78,12.15028959]
[1748924169960,6.2934,158.81,158.79,5.85598959]
[1748924170367,6.2934,158.81,158.78,12.19471774]
[1748924170868,0.04823024,158.82,158.78,0.04442815]
[1748924170869,6.2938,158.8,158.78,0.04442815]
[1748924171068,0.04823024,158.82,158.78,0.04442815]
[1748924171573,0.04823024,158.82,158.78,6.33882815]
[1748924172473,6.34153024,158.82,158.78,6.33882815]
[1748924172673,0.04823024,158.82,158.78,6.33882815]
[1748924173873,6.2934,158.81,158.78,6.33882815]
[1748924174764,6.2938,158.8,158.78,0.04442815]
[1748924174967,0.04823024,158.82,158.78,0.04442815]
[1748924175472,0.04823024,158.82,158.8,6.50855682]
[1748924175674,6.2908,158.88,158.85,6.2915]
[1748924175977,2.1656,158.9,158.84,6.50855682]
[1748924176479,2.1656,158.9,158.82,12.3525221]
[1748924176679,0.04677452,158.88,158.84,0.04077684]
[1748924177179,6.2913,158.87,158.84,0.04077684]
[1748924177483,0.04677452,158.88,158.84,0.04077684]
[1748924177780,12.80035682,158.85,158.84,0.04077684]
[1748924180285,6.2918,158.85,158.84,0.04077684]
[1748924181572,6.2915,158.86,158.84,0.04077684]
[1748924181881,0.04677452,158.88,158.84,0.04077684]
[1748924182477,0.04677452,158.88,158.84,12.39433087]
[1748924182691,0.04677452,158.88,158.86,6.50855682]
[1748924182885,0.04677452,158.88,158.87,6.291]
[1748924188390,37.7834,158.95,158.9,6.2895]
[1748924188592,37.7834,158.95,158.86,43.85758424]
[1748924188593,37.7834,158.95,158.86,37.34902742]
[1748924188884,37.7834,158.95,158.87,6.50855682]
[1748924189194,6.2893,158.92,158.88,6.2904]
[1748924189488,6.33320439,158.92,158.88,6.33247664]
[1748924189687,6.2894,158.91,158.88,6.33247664]
[1748924190394,6.2894,158.91,158.88,0.04207664]
[1748924191191,6.2902,158.89,158.88,0.04207664]
[1748924193485,0.04390439,158.92,158.88,0.04207664]
[1748924193988,6.33300439,158.92,158.88,6.33247664]
[1748924194189,0.04390439,158.92,158.88,0.04207664]
[1748924194590,6.2902,158.89,158.88,0.04207664]
[1748924194792,6.55246121,158.92,158.88,0.04207664]
[1748924194992,0.04390439,158.92,158.88,0.04207664]
[1748924195294,0.04390439,158.92,158.88,6.55063346]
[1748924195794,6.33290439,158.92,158.89,6.2899]
[1748924196387,6.33290439,158.92,158.88,12.84103346]
[1748924196587,0.04390439,158.92,158.88,0.04207664]
[1748924197090,6.2897,158.91,158.88,0.04207664]
[1748924197995,6.2897,158.91,158.88,6.33257664]
[1748924198996,0.04390439,158.92,158.88,0.04207664]
[1748924200098,6.2896,158.91,158.88,6.33267664]
[1748924200995,0.04390439,158.92,158.88,0.04207664]
[1748924201197,0.04390439,158.92,158.88,6.55063346]
[1748924201396,0.04390439,158.92,158.88,12.37589318]
[1748924201600,0.04390439,158.92,158.88,12.37374003]
[1748924201803,0.04390439,158.92,158.88,6.55063346]
[1748924202095,0.04390439,158.92,158.88,12.37374003]
[1748924202399,0.04390439,158.92,158.88,6.55063346]
[1748924203104,0.04390439,158.92,158.9,6.2896]
[1748924203297,0.04390439,158.92,158.9,37.7896]
[1748924203495,0.04390439,158.92,158.9,31.5]
[1748924203699,6.33300439,158.92,158.9,31.5]
[1748924204598,0.04390439,158.92,158.9,31.5]
[1748924205607,0.04390439,158.92,158.91,6.2894]
[1748924212803,12.06392304,158.99,158.94,6.2878]
[1748924213008,6.2868,158.98,158.94,6.2878]
[1748924213211,6.2868,158.98,158.93,6.50855682]
[1748924213817,0.04487412,158.97,158.94,0.04734174]
[1748924215106,6.33207412,158.97,158.94,0.04734174]
[1748924215510,6.33207412,158.97,158.94,6.33544174]
[1748924215909,6.33207412,158.97,158.94,0.04734174]
[1748924217814,0.04487412,158.97,158.94,0.04734174]
[1748924219006,0.04487412,158.97,158.95,6.2876]
[1748924220213,6.33197412,158.97,158.94,37.83544174]
[1748924221707,0.04487412,158.97,158.94,0.04734174]
[1748924222005,38.00855682,158.96,158.9,5.81821343]
[1748924222210,6.50855682,158.92,158.85,13.5904726]
[1748924222605,6.50855682,158.92,158.84,37.32958941]
[1748924222813,6.2905,158.89,158.86,6.33358002]
[1748924223614,6.2905,158.89,158.86,0.04218002]
[1748924223813,6.2909,158.88,158.86,0.04218002]
[1748924224111,0.04633114,158.9,158.86,0.04218002]
[1748924224509,6.2905,158.89,158.86,0.04218002]
[1748924228920,0.04633114,158.9,158.87,6.50855682]
[1748924229118,8.64005682,158.98,158.89,12.33674581]
[1748924229323,8.64005682,158.98,158.91,6.50855682]
[1748924229516,6.2875,158.96,158.92,37.7887]
[1748924230019,6.2872,158.97,158.93,6.2884]
[1748924230322,6.33211701,158.97,158.93,6.32925448]
[1748924231015,6.2874,158.96,158.93,6.32925448]
[1748924232414,0.04491701,158.97,158.93,6.5494113]
[1748924232719,0.04491701,158.97,158.93,12.39399933]
[1748924232914,0.04491701,158.97,158.95,6.2875]
[1748924233724,0.04491701,158.97,158.95,12.79605682]
[1748924233925,0.04491701,158.97,158.96,6.2874]
[1748924234424,2.1134,159.03,158.96,31.5]
[1748924234722,6.50855682,159.06,158.99,6.50855682]
[1748924234930,6.2845,159.04,159.0,6.2854]
[1748924235128,6.2845,159.04,159.0,31.5]
[1748924235422,6.329907,159.04,159.0,31.5421913]
[1748924236130,0.045407,159.04,159.0,31.5421913]
[1748924237829,6.2853,159.02,159.0,31.5421913]
[1748924238324,6.2854,159.01,159.0,31.5421913]
[1748924240526,6.28,159.01,158.93,5.82334617]
[1748924240726,6.50855682,158.94,158.9,5.82334617]
[1748924240924,6.50855682,158.94,158.88,31.48]
[1748924241127,6.50855682,158.94,158.88,37.30334617]
[1748924241330,6.50855682,158.94,158.88,31.48]
[1748924241627,6.2896,158.91,158.89,0.04539913]
[1748924241827,0.04133374,158.93,158.89,0.04539913]
[1748924244039,6.2897,158.91,158.89,0.04539913]
[1748924245342,0.04133374,158.93,158.89,0.04539913]
[1748924245343,6.2898,158.9,158.89,0.04539913]
[1748924246243,6.2895,158.91,158.89,0.04539913]
[1748924248335,6.2898,158.9,158.89,0.04539913]
[1748924252146,6.2895,158.91,158.89,0.04539913]
[1748924253245,6.2898,158.9,158.89,0.04539913]
[1748924258349,6.2894,158.91,158.89,0.04539913]
[1748924259453,6.2898,158.9,158.89,0.04539913]
[1748924260539,6.2895,158.91,158.89,0.04539913]
[1748924260941,0.04133374,158.93,158.89,0.04539913]
[1748924261245,6.2892,158.92,158.89,6.33539913]
[1748924261451,6.2892,158.92,158.89,37.83539913]
[1748924261757,0.04133374,158.93,158.89,31.54539913]
[1748924262847,6.2895,158.91,158.89,31.54539913]
[1748924263549,6.2898,158.9,158.89,31.54539913]
[1748924264447,6.2898,158.9,158.89,0.04539913]
[1748924264653,6.50855682,158.91,158.84,5.82958941]
[1748924264654,6.50855682,158.91,158.84,43.14701163]
[1748924264954,6.50855682,158.89,158.84,37.32958941]
[1748924265147,6.2917,158.86,158.84,37.32958941]
[1748924265649,0.04631391,158.87,158.84,37.32958941]
[1748924265843,6.2914,158.86,158.84,37.32958941]
[1748924266250,0.04631391,158.87,158.84,37.32958941]
[1748924267047,6.2914,158.86,158.84,37.32958941]
[1748924267950,6.2918,158.85,158.84,37.32958941]
[1748924270262,0.04631391,158.87,158.84,37.32958941]
[1748924270943,6.2914,158.86,158.84,37.32958941]
[1748924272552,6.33741391,158.87,158.84,43.62168941]
[1748924273954,0.04631391,158.87,158.84,37.32958941]
[1748924274755,0.04631391,158.87,158.85,6.2918]
[1748924274951,0.04631391,158.87,158.85,6.50855682]
[1748924275156,6.289,158.92,158.85,6.50855682]
[1748924275457,6.289,158.92,158.88,6.50855682]
[1748924275751,38.00855682,158.95,158.88,38.00855682]
[1748924275959,6.2894,158.91,158.88,38.00855682]
[1748924276152,0.04005708,158.93,158.9,0.04668135]
[1748924278255,6.2892,158.92,158.9,0.04668135]
[1748924278647,0.04005708,158.93,158.9,0.04668135]
[1748924278847,6.289,158.92,158.9,0.04668135]
[1748924279460,6.2894,158.91,158.9,0.04668135]
[1748924280248,0.04005708,158.93,158.9,0.04668135]
[1748924280463,6.2892,158.92,158.9,0.04668135]
[1748924280955,0.04005708,158.93,158.9,0.04668135]
[1748924281557,6.2891,158.92,158.9,0.04668135]
[1748924282165,0.04005708,158.93,158.9,6.55523817]
[1748924282648,0.04005708,158.93,158.91,6.2891]
[1748924282955,0.04005708,158.93,158.9,6.55523817]
[1748924283153,6.2874,158.97,158.92,38.00855682]
[1748924283353,2.1431,159.0,158.94,6.50855682]
[1748924283551,2.1431,159.0,158.92,38.00855682]
[1748924283862,2.1431,159.0,158.92,44.29735682]
[1748924284357,0.04292987,158.98,158.94,0.04733167]
[1748924284561,6.2878,158.95,158.94,0.04733167]
[1748924285254,6.2875,158.96,158.94,0.04733167]
[1748924285455,0.04292987,158.98,158.94,6.55588849]
[1748924285856,0.04292987,158.98,158.95,6.2875]
[1748924287358,0.04292987,158.98,158.96,6.2873]
[1748924288265,0.04292987,158.98,158.95,6.2877]
[1748924288664,0.04292987,158.98,158.96,31.48]
[1748924290157,6.287,158.97,158.96,31.48]
[1748924292565,6.32962987,158.98,158.96,31.48]
[1748924296954,6.287,158.97,158.96,31.48]
[1748924297870,6.2878,158.95,158.94,0.04733167]
[1748924298466,6.289,158.92,158.91,31.48]